fUST/lending_fUST_20250523
["ID","MTS","AMOUNT","RATE_DAILY","PERIOD"]
[362023164,1747937478287,-2112.65722753,0.00023616,2]
[362023165,1747937478297,-29091.50549692,0.0002366,2]
[362023166,1747937478307,-2663.27909513,0.00023693,9]
[362023167,1747937478317,-20417.04,0.000237,30]
[362023168,1747937478327,-160.0,0.000237,3]
[362023169,1747937478337,-314.54559427,0.000237,30]
[362023170,1747937478346,-2200.0,0.00023735,2]
[362023171,1747937478356,-755.29,0.00023737,2]
[362023172,1747937478365,-430.0,0.00023737,2]
[362023173,1747937478375,-430.0,0.00023737,2]
[362023174,1747937478385,-543.2,0.00023737,2]
[362023175,1747937478395,-727.06,0.00023737,2]
[362023176,1747937478404,-430.0,0.00023737,2]
[362023177,1747937478413,-444.13,0.00023737,2]
[362023178,1747937478423,-928.04,0.00023737,2]
[362023179,1747937478433,-430.0,0.00023737,2]
[362023180,1747937478443,-4381.58,0.00023737,2]
[362023181,1747937478452,-430.0,0.00023737,2]
[362023182,1747937478461,-953.82,0.00023737,2]
[362023183,1747937478471,-2814.75,0.00023737,2]
[362023184,1747937478481,-1916.57,0.00023737,2]
[362023185,1747937478490,-2051.68,0.00023737,2]
[362023186,1747937478500,-1029.01,0.00023737,2]
[362023187,1747937478510,-1345.46,0.00023737,2]
[362023188,1747937478520,-854.7,0.00023737,2]
[362023189,1747937478530,-1268.89,0.00023737,2]
[362023190,1747937478539,-430.0,0.00023737,2]
[362023191,1747937478549,-1006.28,0.00023737,2]
[362023192,1747937478559,-9816.64,0.00023737,2]
[362023193,1747937478568,-430.0,0.00023737,2]
[362023194,1747937478578,-510.0,0.00023737,2]
[362023195,1747937478588,-1432.41,0.00023737,2]
[362023196,1747937478599,-944.38,0.00023737,2]
[362023197,1747937478609,-880.15,0.00023737,2]
[362023198,1747937478619,-430.0,0.00023737,2]
[362023199,1747937478629,-530.0,0.00023737,2]
[362023200,1747937478639,-430.0,0.00023737,2]
[362023201,1747937478648,-633.5,0.00023737,2]
[362023202,1747937478659,-430.0,0.00023737,2]
[362023203,1747937478668,-153.9,0.00023737,2]
[362023204,1747937478679,-430.0,0.00023737,2]
[362023205,1747937478689,-760.18,0.00023737,2]
[362023206,1747937478700,-1811.62,0.00023737,2]
[362023207,1747937478709,-1062.44,0.00023737,2]
[362023208,1747937478719,-1627.43,0.00023737,2]
[362023209,1747937478730,-679.42,0.00023737,2]
[362023210,1747937478740,-430.0,0.00023737,2]
[362023211,1747937478749,-2910.52,0.00023737,2]
[362023212,1747937478759,-430.0,0.00023737,2]
[362023213,1747937478768,-798.79,0.00023737,2]
[362023214,1747937478778,-997.02,0.00023737,2]
[362023215,1747937478788,-1202.01,0.00023737,2]
[362023216,1747937478797,-500.0,0.00023737,2]
[362023217,1747937478808,-159.05485592,0.00023753,2]
[362023218,1747937478818,-161.94074666,0.00023753,2]
[362023219,1747937478828,-2500.0,0.00023764,2]
[362023220,1747937478839,-2500.0,0.00023764,2]
[362023221,1747937478850,-3000.0,0.00023764,2]
[362023222,1747937478860,-2500.0,0.00023764,2]
[362023223,1747937478870,-1881.97774931,0.00023764,2]
[362023224,1747937478879,-8361.66808399,0.00023773,2]
[362023225,1747937478889,-447.56,0.00023788,2]
[362023226,1747937478898,-793.08,0.00023788,2]
[362023227,1747937478908,-870.97,0.00023788,2]
[362023228,1747937478918,-754.99,0.00023788,2]
[362023229,1747937478927,-2636.85,0.00023788,2]
[362023230,1747937478946,-4193.45,0.00023788,2]
[362023231,1747937478969,-635.81,0.00023788,2]
[362023232,1747937478990,-8839.91,0.00023788,2]
[362023233,1747937479012,-10000.0,0.000238,7]
[362023234,1747937479035,-2000.0,0.00023816,2]
[362023235,1747937479056,-2000.0,0.00023816,2]
[362023236,1747937479077,-534.90713241,0.00023816,2]
[362023237,1747937479096,-2000.0,0.00023816,2]
[362023238,1747937479113,-2000.0,0.00023816,2]
[362023239,1747937479132,-2000.0,0.00023816,2]
[362023240,1747937479154,-2000.0,0.00023816,2]
[362023241,1747937479176,-2000.0,0.00023816,2]
[362023242,1747937479189,-2000.0,0.00023816,2]
[362023243,1747937479210,-2031.78613828,0.00023816,2]
[362023244,1747937479227,-1563.22103636,0.00023816,2]
[362023245,1747937479246,-2000.0,0.00023816,2]
[362023246,1747937479263,-223.0315306,0.00023818,2]
[362023247,1747937479282,-151.0,0.00023818,2]
[362023248,1747937479299,-524.78,0.00023835,2]
[362023249,1747937479315,-470.07218911,0.00023835,2]
[362023250,1747937479332,-430.0,0.00023835,2]
[362023251,1747937479348,-439.05,0.00023835,2]
[362023252,1747937479365,-470.0,0.00023835,2]
[362023253,1747937479382,-430.0,0.00023835,2]
[362023254,1747937479398,-430.0,0.00023835,2]
[362023255,1747937479415,-1218.95,0.00023835,2]
[362023256,1747937479432,-430.0,0.00023835,2]
[362023257,1747937479447,-580.09,0.00023835,2]
[362023258,1747937479464,-430.0,0.00023835,2]
[362023259,1747937479481,-430.0,0.00023835,2]
[362023260,1747937479498,-430.0,0.00023835,2]
[362023261,1747937479518,-430.0,0.00023835,2]
[362023262,1747937479534,-405.52632558,0.00023835,2]
[362023263,1747937479552,-450.49,0.00023835,2]
[362023264,1747937479568,-430.0,0.00023835,2]
[362023265,1747937479585,-1179.96,0.00023835,2]
[362023266,1747937479601,-430.0,0.00023835,2]
[362023267,1747937479618,-430.0,0.00023835,2]
[362023268,1747937479634,-430.0,0.00023835,2]
[362023269,1747937479651,-430.0,0.00023835,2]
[362023270,1747937479667,-430.0,0.00023835,2]
[362023271,1747937479685,-430.0,0.00023835,2]
[362023272,1747937479701,-601.61,0.00023835,2]
[362023273,1747937479719,-430.0,0.00023835,2]
[362023274,1747937479736,-920.11,0.00023835,2]
[362023275,1747937479753,-395.24702105,0.00023835,2]
[362023276,1747937479770,-1361.15,0.00023835,2]
[362023277,1747937479787,-1240.4,0.00023835,2]
[362023278,1747937479806,-430.0,0.00023835,2]
[362023279,1747937479823,-430.0,0.00023835,2]
[362023280,1747937479839,-782.33,0.00023835,2]
[362023281,1747937479855,-980.99,0.00023835,2]
[362023282,1747937479872,-430.0,0.00023835,2]
[362023283,1747937479888,-430.0,0.00023835,2]
[362023284,1747937479904,-430.0,0.00023835,2]
[362023285,1747937479922,-12500.0,0.00023865,3]
[362023286,1747937479943,-2663.27909513,0.00023866,10]
[362023287,1747937479959,-1500.0,0.00023868,2]
[362023288,1747937479978,-1039.8821631,0.00023868,2]
[362023289,1747937479996,-12500.0,0.00023874,3]
[362023290,1747937480013,-12500.0,0.00023874,3]
[362023291,1747937480030,-2717.99,0.00023876,2]
[362023292,1747937480045,-1248.89,0.00023876,2]
[362023293,1747937480063,-1231.12,0.00023876,2]
[362023294,1747937480080,-430.0,0.00023876,2]
[362023295,1747937480095,-3114.31,0.00023876,2]
[362023296,1747937480112,-6202.28,0.00023876,2]
[362023297,1747937480130,-869.75,0.00023876,2]
[362023298,1747937480145,-430.0,0.00023876,2]
[362023299,1747937480316,-2313.92,0.00023876,2]
[362023300,1747937480336,-723.28,0.00023876,2]
[362023301,1747937480346,-1963.66,0.00023876,2]
[362023302,1747937480355,-927.6,0.00023876,2]
[362023303,1747937480365,-1019.25,0.00023876,2]
[362023304,1747937480375,-1494.4,0.00023876,2]
[362023305,1747937480384,-1033.98,0.00023876,2]
[362023306,1747937480394,-551.4,0.00023876,2]
[362023307,1747937480403,-1443.52,0.00023876,2]
[362023308,1747937480413,-488.57,0.00023876,2]
[362023309,1747937480422,-12500.0,0.00023882,3]
[362023310,1747937480432,-12500.0,0.00023882,3]
[362023311,1747937480442,-12500.0,0.00023891,3]
[362023312,1747937480452,-12500.0,0.00023891,3]
[362023313,1747937480461,-12500.0,0.00023891,3]
[362023314,1747937480471,-719.48,0.00023893,7]
[362023315,1747937480482,-10047.7853,0.000239,5]
[362023316,1747937480492,-156.0,0.000239,2]
[362023317,1747937480502,-12500.0,0.000239,3]
[362023318,1747937480514,-12500.0,0.000239,3]
[362023319,1747937480525,-12500.0,0.000239,3]
[362023320,1747937480537,-5308.75832952,0.000239,2]
[362023321,1747937480547,-150.5,0.0002397,120]
[362023322,1747937480557,-500.0,0.00023973,2]
[362023323,1747937480569,-500.0,0.00023973,2]
[362023324,1747937480581,-351.80132276,0.00023973,2]
[362023325,1747937480592,-500.0,0.00023973,2]
[362023326,1747937480602,-500.0,0.00023973,2]
[362023327,1747937480615,-500.0,0.00023973,2]
[362023328,1747937480626,-500.0,0.00023973,2]
[362023329,1747937480637,-304.71237681,0.00023973,2]
[362023330,1747937480648,-500.0,0.00023973,2]
[362023331,1747937480659,-500.0,0.00023973,2]
[362023332,1747937480669,-500.0,0.00023973,2]
[362023333,1747937480679,-500.0,0.00023973,2]
[362023334,1747937480690,-500.0,0.00023973,2]
[362023335,1747937480700,-150.5,0.0002398,120]
[362023336,1747937480710,-150.5,0.0002398,120]
[362023337,1747937480720,-1991.44747746,0.0002398,3]
[362023338,1747937480730,-292.0,0.0002398,120]
[362023339,1747937480739,-150.5,0.0002399,120]
[362023340,1747937480749,-150.5,0.0002399,120]
[362023341,1747937480760,-894909.09714131,0.0002399,15]
[362023342,1747937480770,-719.48,0.00023993,5]
[362023343,1747937480779,-2200.0,0.00023995,2]
[362023344,1747937480788,-500.0,0.00023995,2]
[362023345,1747937480798,-801126.04167929,0.00024,30]
[362023346,1747937481007,-555.00371477,0.00024,30]
[362023347,1747937481481,-344.69144073,0.00020998,2]
[362023348,1747937481497,-214.60855927,0.00020998,2]
[362023349,1747937481507,-160.0,0.00022053,2]
[362023350,1747937481516,-315.0,0.00022074,3]
[362023351,1747937481527,-2934.9,0.00023463,2]
[362023352,1747937481536,-2934.9,0.00023737,2]
[362023353,1747937481545,-98810.14570132,0.00024,30]
[362023354,1747937481557,-3840.48672614,0.00024,30]
[362023355,1747937481598,-6070.43712151,0.00024,30]
[362023356,1747937481610,-300.0,0.00024,30]
[362023357,1747937481621,-3053.02377139,0.00024,30]
[362023358,1747937481703,-398.076,0.00024,30]
[362023359,1747937481714,-1581.16795927,0.00024,30]
[362023360,1747937481908,-35246.70670902,0.00024,30]
[362023361,1747937482208,-0.0749366,0.00024,30]
[362023362,1747937482220,-450.0,0.00024,30]
[362023449,1747938632169,-5000.0,0.00016928,2]
[362023450,1747938632179,-222.184482,0.00017099,2]
[362023451,1747938632191,-1152.0,0.00017372,2]
[362023452,1747938632201,-300.0,0.00017372,2]
[362023453,1747938632211,-24900.0,0.00017373,2]
[362023454,1747938632222,-2845.4775114,0.00017532,2]
[362023455,1747938632232,-609.2421012,0.00017627,2]
[362023456,1747938632242,-859.8660694,0.00017627,2]
[362023457,1747938632252,-933.14717465,0.000184,2]
[362023458,1747938632262,-300.0,0.00018428,2]
[362023459,1747938632272,-208.60118207,0.00018429,2]
[362023460,1747938632282,-2392.6338525,0.0001843,2]
[362023461,1747938632305,-60360.9667014,0.0001843,2]
[362023462,1747938632315,-309.6372194,0.00018519,2]
[362023463,1747938632326,-975.76740229,0.0001875,2]
[362023464,1747938632335,-781.3407655,0.00018808,2]
[362023465,1747938632345,-8553.8272476,0.00018937,2]
[362023466,1747938632355,-420.0,0.00018967,2]
[362023467,1747938632364,-430.0,0.00019178,2]
[362023468,1747938632374,-854.93,0.00019178,2]
[362023469,1747938632385,-1150.13,0.00019178,2]
[362023470,1747938632396,-450.0,0.00019178,2]
[362023471,1747938632406,-175.26726233,0.00019178,2]
[362023472,1747938632416,-466.66,0.00019178,2]
[362023473,1747938632427,-1427.39,0.00019178,2]
[362023474,1747938632437,-450.0,0.00019178,2]
[362023475,1747938632446,-450.0,0.00019178,2]
[362023476,1747938632456,-2842.71,0.00019178,2]
[362023477,1747938632467,-467.16,0.00019178,2]
[362023478,1747938632477,-390.0,0.00019178,2]
[362023479,1747938632486,-430.0,0.00019178,2]
[362023480,1747938632495,-204.75733105,0.00019178,2]
[362023481,1747938632505,-430.0,0.00019178,2]
[362023482,1747938632515,-918.76,0.00019178,2]
[362023483,1747938632524,-403.97626816,0.00019178,2]
[362023484,1747938632534,-450.0,0.00019178,2]
[362023485,1747938632543,-448.23,0.00019178,2]
[362023486,1747938632558,-722.25,0.00019178,2]
[362023487,1747938632568,-430.0,0.00019178,2]
[362023488,1747938632578,-430.0,0.00019178,2]
[362023489,1747938632587,-572.90266895,0.00019178,2]
[362023490,1747938632598,-430.0,0.00019178,2]
[362023491,1747938632608,-450.0,0.00019178,2]
[362023492,1747938632617,-430.0,0.00019178,2]
[362023493,1747938632627,-450.0,0.00019178,2]
[362023494,1747938632636,-1047.05,0.00019178,2]
[362023495,1747938632647,-519.69,0.00019178,2]
[362023496,1747938632657,-646.58,0.00019178,2]
[362023497,1747938632666,-151.38596645,0.00019178,2]
[362023498,1747938632676,-430.0,0.00019178,2]
[362023499,1747938632686,-661.62,0.00019178,2]
[362023500,1747938632696,-5406.93,0.00019178,2]
[362023501,1747938632705,-430.0,0.00019178,2]
[362023502,1747938632715,-430.0,0.00019178,2]
[362023503,1747938632725,-1662.13,0.00019178,2]
[362023504,1747938632735,-430.0,0.00019178,2]
[362023505,1747938632744,-430.0,0.00019178,2]
[362023506,1747938632754,-450.0,0.00019178,2]
[362023507,1747938632763,-806.46,0.00019178,2]
[362023508,1747938632773,-430.0,0.00019178,2]
[362023509,1747938632782,-450.0,0.00019178,2]
[362023510,1747938632792,-430.0,0.00019178,2]
[362023511,1747938632805,-1325.31,0.00019178,2]
[362023512,1747938632814,-3314.96,0.00019178,2]
[362023513,1747938632824,-430.0,0.00019178,2]
[362023514,1747938632833,-430.0,0.00019178,2]
[362023515,1747938632843,-450.0,0.00019178,2]
[362023516,1747938632853,-516.66,0.00019178,2]
[362023517,1747938632862,-572.41,0.00019178,2]
[362023518,1747938632872,-564.26,0.00019178,2]
[362023519,1747938632882,-362.907442,0.00019178,2]
[362023520,1747938632892,-430.0,0.00019452,2]
[362023521,1747938632902,-854.93,0.00019452,2]
[362023522,1747938632911,-1150.13,0.00019452,2]
[362023523,1747938632920,-1427.39,0.00019452,2]
[362023524,1747938632930,-2842.71,0.00019452,2]
[362023525,1747938632939,-467.16,0.00019452,2]
[362023526,1747938632950,-430.0,0.00019452,2]
[362023527,1747938632960,-918.76,0.00019452,2]
[362023528,1747938632969,-448.23,0.00019452,2]
[362023529,1747938632978,-722.25,0.00019452,2]
[362023530,1747938632988,-450.0,0.00019452,2]
[362023531,1747938632998,-430.0,0.00019452,2]
[362023532,1747938633007,-430.0,0.00019452,2]
[362023533,1747938633017,-430.0,0.00019452,2]
[362023534,1747938633026,-1047.05,0.00019452,2]
[362023535,1747938633035,-519.69,0.00019452,2]
[362023536,1747938633045,-646.58,0.00019452,2]
[362023537,1747938633058,-430.0,0.00019452,2]
[362023538,1747938633069,-661.62,0.00019452,2]
[362023539,1747938633079,-5406.93,0.00019452,2]
[362023540,1747938633088,-430.0,0.00019452,2]
[362023541,1747938633097,-470.0,0.00019452,2]
[362023542,1747938633108,-1662.13,0.00019452,2]
[362023543,1747938633118,-470.0,0.00019452,2]
[362023544,1747938633127,-480.87064506,0.00019452,2]
[362023545,1747938633137,-806.46,0.00019452,2]
[362023546,1747938633147,-430.0,0.00019452,2]
[362023547,1747938633157,-430.0,0.00019452,2]
[362023548,1747938633167,-1325.31,0.00019452,2]
[362023549,1747938633176,-3314.96,0.00019452,2]
[362023550,1747938633186,-430.0,0.00019452,2]
[362023551,1747938633196,-516.66,0.00019452,2]
[362023552,1747938633205,-572.41,0.00019452,2]
[362023553,1747938633215,-564.26,0.00019452,2]
[362023554,1747938633225,-430.0,0.00019726,2]
[362023555,1747938633235,-854.93,0.00019726,2]
[362023556,1747938633244,-1150.13,0.00019726,2]
[362023557,1747938633254,-1427.39,0.00019726,2]
[362023558,1747938633264,-2842.71,0.00019726,2]
[362023559,1747938633273,-467.16,0.00019726,2]
[362023560,1747938633282,-430.0,0.00019726,2]
[362023561,1747938633291,-918.76,0.00019726,2]
[362023562,1747938633303,-448.23,0.00019726,2]
[362023563,1747938633314,-722.25,0.00019726,2]
[362023564,1747938633323,-156.9,0.00019726,2]
[362023565,1747938633332,-430.0,0.00019726,2]
[362023566,1747938633342,-430.0,0.00019726,2]
[362023567,1747938633354,-1047.05,0.00019726,2]
[362023568,1747938633364,-519.69,0.00019726,2]
[362023569,1747938633374,-646.58,0.00019726,2]
[362023570,1747938633384,-430.0,0.00019726,2]
[362023571,1747938633397,-661.62,0.00019726,2]
[362023572,1747938633406,-5406.93,0.00019726,2]
[362023573,1747938633416,-430.0,0.00019726,2]
[362023574,1747938633426,-1662.13,0.00019726,2]
[362023575,1747938633438,-806.46,0.00019726,2]
[362023576,1747938633448,-430.0,0.00019726,2]
[362023577,1747938633458,-430.0,0.00019726,2]
[362023578,1747938633469,-1325.31,0.00019726,2]
[362023579,1747938633479,-3314.96,0.00019726,2]
[362023580,1747938633489,-430.0,0.00019726,2]
[362023581,1747938633499,-516.66,0.00019726,2]
[362023582,1747938633509,-572.41,0.00019726,2]
[362023583,1747938633519,-564.26,0.00019726,2]
[362023584,1747938633530,-279.8368894,0.00019851,2]
[362023585,1747938633539,-392.09741395,0.0001995,2]
[362023586,1747938633551,-407.06495353,0.0001995,2]
[362023587,1747938633561,-430.0,0.0001995,2]
[362023588,1747938633571,-430.0,0.0001995,2]
[362023589,1747938633582,-450.0,0.0001995,2]
[362023590,1747938633592,-430.0,0.0001995,2]
[362023591,1747938633602,-430.0,0.0001995,2]
[362023592,1747938633611,-450.0,0.0001995,2]
[362023593,1747938633621,-500.0,0.0001995,2]
[362023594,1747938633631,-430.0,0.0001995,2]
[362023595,1747938633641,-430.0,0.0001995,2]
[362023596,1747938633650,-400.03659295,0.0001995,2]
[362023597,1747938633661,-430.0,0.0001995,2]
[362023598,1747938633670,-450.0,0.0001995,2]
[362023599,1747938633681,-430.0,0.0001995,2]
[362023600,1747938633690,-430.0,0.0001995,2]
[362023601,1747938633700,-613.41,0.0001995,2]
[362023602,1747938633710,-521.56,0.0001995,2]
[362023603,1747938633720,-450.0,0.0001995,2]
[362023604,1747938633730,-450.0,0.0001995,2]
[362023605,1747938633740,-430.0,0.0001995,2]
[362023606,1747938633749,-430.0,0.0001995,2]
[362023607,1747938633759,-430.0,0.0001995,2]
[362023608,1747938633769,-430.0,0.0001995,2]
[362023609,1747938633779,-450.0,0.0001995,2]
[362023610,1747938633789,-450.0,0.0001995,2]
[362023611,1747938633800,-430.0,0.0001995,2]
[362023612,1747938633810,-470.0,0.0001995,2]
[362023613,1747938633820,-574.61,0.0001995,2]
[362023614,1747938633830,-430.0,0.0001995,2]
[362023615,1747938633840,-430.0,0.0001995,2]
[362023616,1747938633850,-430.0,0.0001995,2]
[362023617,1747938633860,-450.0,0.0001995,2]
[362023618,1747938633870,-450.0,0.0001995,2]
[362023619,1747938633881,-430.0,0.0001995,2]
[362023620,1747938633891,-430.0,0.0001995,2]
[362023621,1747938633901,-430.0,0.0001995,2]
[362023622,1747938633911,-430.0,0.0001995,2]
[362023623,1747938633921,-450.0,0.0001995,2]
[362023624,1747938633930,-430.0,0.0001995,2]
[362023625,1747938633940,-450.0,0.0001995,2]
[362023626,1747938633950,-450.0,0.0001995,2]
[362023627,1747938633959,-490.2198061,0.0001995,2]
[362023628,1747938633969,-450.0,0.0001995,2]
[362023629,1747938633979,-450.0,0.0001995,2]
[362023630,1747938633989,-430.0,0.0001995,2]
[362023631,1747938633998,-500.0,0.0001995,2]
[362023632,1747938634009,-430.0,0.0001995,2]
[362023633,1747938634018,-430.0,0.0001995,2]
[362023634,1747938634028,-450.0,0.0001995,2]
[362023635,1747938634038,-430.0,0.0001995,2]
[362023636,1747938634049,-450.0,0.0001995,2]
[362023637,1747938634059,-450.0,0.0001995,2]
[362023638,1747938634069,-430.0,0.0001995,2]
[362023639,1747938634079,-450.0,0.0001995,2]
[362023640,1747938634090,-477.99,0.0001995,2]
[362023641,1747938634100,-533.88,0.0001995,2]
[362023642,1747938634111,-450.0,0.0001995,2]
[362023643,1747938634120,-450.0,0.0001995,2]
[362023644,1747938634130,-450.0,0.0001995,2]
[362023645,1747938634140,-430.0,0.0001995,2]
[362023646,1747938634150,-450.0,0.0001995,2]
[362023647,1747938634161,-430.0,0.0001995,2]
[362023648,1747938634171,-430.0,0.0001995,2]
[362023649,1747938634182,-450.0,0.0001995,2]
[362023650,1747938634192,-450.0,0.0001995,2]
[362023651,1747938634203,-1038.14,0.0001995,2]
[362023652,1747938634214,-452.91587572,0.0001995,2]
[362023653,1747938634224,-430.0,0.0001995,2]
[362023654,1747938634234,-430.0,0.0001995,2]
[362023655,1747938634254,-430.0,0.0001995,2]
[362023656,1747938634268,-450.0,0.0001995,2]
[362023657,1747938634279,-486.91,0.0001995,2]
[362023658,1747938634290,-450.0,0.0001995,2]
[362023659,1747938634303,-430.0,0.0001995,2]
[362023660,1747938634314,-430.0,0.0001995,2]
[362023661,1747938634325,-387.6527554,0.0001995,2]
[362023662,1747938634335,-1108.09,0.0001995,2]
[362023663,1747938634346,-430.0,0.0001995,2]
[362023664,1747938634356,-430.0,0.0001995,2]
[362023665,1747938634366,-430.0,0.0001995,2]
[362023666,1747938634376,-450.0,0.0001995,2]
[362023667,1747938634388,-430.0,0.0001995,2]
[362023668,1747938634399,-430.0,0.0001995,2]
[362023669,1747938634408,-430.0,0.0001995,2]
[362023670,1747938634419,-430.0,0.0001995,2]
[362023671,1747938634431,-430.0,0.0001995,2]
[362023672,1747938634441,-430.0,0.0001995,2]
[362023673,1747938634452,-430.0,0.0001995,2]
[362023674,1747938634462,-476.75,0.0001995,2]
[362023675,1747938634473,-549.04,0.0001995,2]
[362023676,1747938634483,-430.0,0.0001995,2]
[362023677,1747938634494,-400.0,0.0001995,2]
[362023678,1747938634504,-430.0,0.0001995,2]
[362023679,1747938634514,-922.95,0.0001995,2]
[362023680,1747938634526,-450.0,0.0001995,2]
[362023681,1747938634536,-430.0,0.0001995,2]
[362023682,1747938634547,-1576.53,0.0001995,2]
[362023683,1747938634560,-450.0,0.0001995,2]
[362023684,1747938634571,-430.0,0.0001995,2]
[362023685,1747938634581,-450.0,0.0001995,2]
[362023686,1747938634591,-507.0,0.0001995,2]
[362023687,1747938634601,-430.0,0.0001995,2]
[362023688,1747938634611,-430.0,0.0001995,2]
[362023689,1747938634621,-450.0,0.0001995,2]
[362023690,1747938634631,-450.0,0.0001995,2]
[362023691,1747938634641,-432.68,0.0001995,2]
[362023692,1747938634651,-450.0,0.0001995,2]
[362023693,1747938634661,-450.0,0.0001995,2]
[362023694,1747938634671,-450.0,0.0001995,2]
[362023695,1747938634680,-450.0,0.0001995,2]
[362023696,1747938634690,-450.0,0.0001995,2]
[362023697,1747938634700,-597.94,0.0001995,2]
[362023698,1747938634710,-320.98921431,0.0001995,2]
[362023699,1747938634720,-1589.74,0.0001995,2]
[362023700,1747938634729,-430.0,0.0001995,2]
[362023701,1747938634739,-430.0,0.0001995,2]
[362023702,1747938634749,-1067.49,0.0001995,2]
[362023703,1747938634758,-430.0,0.0001995,2]
[362023704,1747938634768,-430.0,0.0001995,2]
[362023705,1747938634777,-677.05,0.0001995,2]
[362023706,1747938634787,-450.0,0.0001995,2]
[362023707,1747938634797,-430.0,0.0001995,2]
[362023708,1747938634809,-2373.35,0.0001995,2]
[362023709,1747938634818,-577.6,0.0001995,2]
[362023710,1747938634829,-430.0,0.0001995,2]
[362023711,1747938634839,-430.0,0.0001995,2]
[362023712,1747938634848,-350.0,0.0001995,2]
[362023713,1747938634858,-1145.41,0.0001995,2]
[362023714,1747938634872,-430.0,0.0001995,2]
[362023715,1747938634882,-359.40216688,0.0001995,2]
[362023716,1747938634892,-450.0,0.0001995,2]
[362023717,1747938634902,-450.0,0.0001995,2]
[362023718,1747938634911,-1524.66,0.0001995,2]
[362023719,1747938634921,-430.0,0.0001995,2]
[362023720,1747938634931,-812.43,0.0001995,2]
[362023721,1747938634941,-430.0,0.0001995,2]
[362023722,1747938634951,-566.20092609,0.0001995,2]
[362023723,1747938634960,-557.38,0.0001995,2]
[362023724,1747938634970,-430.0,0.0001995,2]
[362023725,1747938634979,-430.0,0.0001995,2]
[362023726,1747938634990,-450.0,0.0001995,2]
[362023727,1747938634999,-1282.81,0.0001995,2]
[362023728,1747938635009,-430.0,0.0001995,2]
[362023729,1747938635019,-430.0,0.0001995,2]
[362023730,1747938635029,-687.32,0.0001995,2]
[362023731,1747938635039,-430.0,0.0001995,2]
[362023732,1747938635050,-250.0,0.0001995,2]
[362023733,1747938635060,-430.0,0.0001995,2]
[362023734,1747938635071,-447.61,0.0001995,2]
[362023735,1747938635080,-450.0,0.0001995,2]
[362023736,1747938635090,-430.0,0.0001995,2]
[362023737,1747938635099,-938.74,0.0001995,2]
[362023738,1747938635109,-430.0,0.0001995,2]
[362023739,1747938635119,-450.0,0.0001995,2]
[362023740,1747938635129,-450.0,0.00019951,2]
[362023741,1747938635138,-450.0,0.00019951,2]
[362023742,1747938635148,-450.0,0.00019951,2]
[362023743,1747938635158,-450.0,0.00019951,2]
[362023744,1747938635168,-430.0,0.00019951,2]
[362023745,1747938635177,-571.54,0.00019951,2]
[362023746,1747938635187,-414.96500573,0.00019951,2]
[362023747,1747938635197,-450.0,0.00019951,2]
[362023748,1747938635206,-450.0,0.00019951,2]
[362023749,1747938635216,-450.0,0.00019951,2]